bitfinex-derivatives/quotes_BTCF0:USTF0_20240913
["timestamp","ask_amount","ask_price","bid_price","bid_amount"]
[1726222826668,0.49174715,58148.0,58147.0,0.37003565]
[1726222826876,0.61174715,58148.0,58147.0,0.37003565]
[1726222827173,0.61174715,58148.0,58147.0,0.23936475]
[1726222827360,0.61174715,58148.0,58147.0,0.13625323]
[1726222828772,0.61174715,58148.0,58147.0,0.13626507]
[1726222829082,0.73986097,58148.0,58147.0,0.012]
[1726222830074,0.89461511,58148.0,58147.0,0.012]
[1726222830276,0.91986794,58148.0,58147.0,0.012]
[1726222831476,0.55906794,58148.0,58147.0,0.012]
[1726222831780,0.68863011,58148.0,58147.0,0.097984]
[1726222832080,0.48109182,58148.0,58147.0,0.097984]
[1726222833469,0.56707482,58148.0,58147.0,0.097984]
[1726222834269,0.56707482,58148.0,58147.0,0.012]
[1726222834270,0.61985619,58148.0,58147.0,0.012]
[1726222835079,1.22175919,58148.0,58147.0,0.012]
[1726222835284,0.257979,58141.0,58140.0,0.004]
[1726222835577,0.086003,58134.0,58133.0,0.419805]
[1726222835781,0.23922098,58134.0,58133.0,0.415805]
[1726222836285,0.11922455,58134.0,58133.0,0.44112207]
[1726222836778,0.48002455,58134.0,58133.0,0.44112207]
[1726222836979,0.446803,58134.0,58133.0,0.56572504]
[1726222837585,0.447803,58134.0,58133.0,0.57172504]
[1726222838072,0.002,58134.0,58133.0,0.80631267]
[1726222838275,0.002,58134.0,58133.0,0.76640767]
[1726222838487,0.086001,58136.0,58135.0,0.086002]
[1726222838784,0.086001,58136.0,58135.0,0.5591876]
[1726222839281,0.086001,58136.0,58135.0,0.41060497]
[1726222839677,0.087001,58136.0,58135.0,0.55882456]
[1726222840372,0.087001,58136.0,58135.0,0.41060497]
[1726222840579,0.088001,58136.0,58135.0,0.41160497]
[1726222841075,0.088001,58136.0,58135.0,0.287002]
[1726222841271,0.088001,58136.0,58135.0,0.41133143]
[1726222841773,0.088001,58136.0,58135.0,0.21133143]
[1726222842486,0.088001,58136.0,58135.0,0.359552]
[1726222845383,0.002,58136.0,58135.0,0.359552]
[1726222846287,0.002,58136.0,58135.0,0.445554]
[1726222850877,0.002,58136.0,58135.0,0.44544469]
[1726222851874,0.002,58136.0,58135.0,0.173004]
[1726222858383,0.002,58136.0,58135.0,0.293004]
[1726222858985,0.002,58136.0,58135.0,0.5655303]
[1726222860697,0.002,58136.0,58135.0,0.5655795]
[1726222862195,0.002,58136.0,58135.0,0.6515815]
[1726222862691,0.3648,58141.0,58140.0,0.085995]
[1726222862892,0.3608,58141.0,58140.0,0.21034731]
[1726222863293,0.3608,58141.0,58140.0,0.44477987]
[1726222863899,0.3618,58141.0,58140.0,0.44577987]
[1726222864092,0.3618,58141.0,58140.0,0.44596637]
[1726222864700,0.3618,58141.0,58140.0,0.56596637]
[1726222865089,0.3628,58141.0,58140.0,0.56796637]
[1726222866899,0.35299404,58141.0,58140.0,0.29499]
[1726222867286,0.03522033,58141.0,58140.0,0.380985]
[1726222867691,0.03522033,58141.0,58140.0,0.29499]
[1726222868991,0.03521742,58141.0,58140.0,0.29499]
[1726222869193,0.03521742,58141.0,58140.0,0.17499]
[1726222869495,0.03521742,58141.0,58140.0,0.32078806]
[1726222869687,0.002,58141.0,58140.0,0.32078806]
[1726222874100,0.0491,58147.0,58146.0,0.085986]
[1726222874295,0.0491,58147.0,58146.0,0.31318739]
[1726222875602,0.0501,58147.0,58146.0,0.31518739]
[1726222876004,0.0511,58147.0,58146.0,0.31818739]
[1726222876501,0.0511,58147.0,58146.0,0.21518007]
[1726222879695,0.137084,58147.0,58146.0,0.21518007]
[1726222879899,0.137084,58147.0,58146.0,0.2403327]
[1726222882199,0.2124112,58147.0,58146.0,0.11613863]
[1726222885099,0.1264272,58147.0,58146.0,0.11613863]
[1726222885305,0.1264272,58147.0,58146.0,0.20212463]
[1726222886595,0.03521688,58147.0,58146.0,0.20212463]
[1726222886800,0.15547116,58147.0,58146.0,0.56292463]
[1726222886995,0.15547116,58147.0,58146.0,0.11613863]
[1726222887192,0.21170862,58147.0,58146.0,0.11613863]
[1726222889006,0.136384,58147.0,58146.0,0.2402948]
[1726222892404,0.136384,58147.0,58146.0,0.3433201]
[1726222893304,0.136384,58147.0,58146.0,0.34334895]
[1726222896300,0.136384,58147.0,58146.0,0.24032365]
[1726222897212,0.1696006,58147.0,58146.0,0.11613863]
[1726222897409,0.28987688,58147.0,58146.0,0.11613863]
[1726222898209,0.33198792,58147.0,58146.0,0.11613863]
[1726222898412,0.07732764,58147.0,58146.0,0.32212463]
[1726222898622,0.0773267,58147.0,58146.0,0.32212463]
[1726222899507,0.0773267,58147.0,58146.0,0.23613863]
[1726222900402,0.0773267,58147.0,58146.0,0.32212463]
[1726222900602,0.0773267,58147.0,58146.0,0.76891063]
[1726222900809,0.0773267,58147.0,58146.0,0.68292463]
[1726222901411,0.2833107,58147.0,58146.0,0.090986]
[1726222901613,0.3318107,58147.0,58146.0,0.090986]
[1726222902031,0.26459286,58147.0,58146.0,0.090986]
[1726222902214,0.2118107,58147.0,58146.0,0.090986]
[1726222902414,0.26459306,58147.0,58146.0,0.090986]
[1726222904206,0.26459306,58147.0,58146.0,0.3636238]
[1726222904207,0.136484,58147.0,58146.0,0.3636238]
[1726222905006,0.16232103,58147.0,58146.0,0.3636238]
[1726222907813,0.16232103,58147.0,58146.0,0.3636206]
[1726222910221,0.52312103,58147.0,58146.0,0.3636206]
[1726222911111,0.16232103,58147.0,58146.0,0.3636206]
[1726222911313,0.52312103,58147.0,58146.0,0.3636206]
[1726222911914,0.48009802,58147.0,58146.0,0.3636206]
[1726222912615,0.48009802,58147.0,58146.0,0.36315204]
[1726222913019,0.56608202,58147.0,58146.0,0.36315204]
[1726222917031,0.20528202,58147.0,58146.0,0.36315204]
[1726222917221,0.56608202,58147.0,58146.0,0.36315204]
[1726222917621,0.11929802,58147.0,58146.0,0.36314396]
[1726222917839,0.11929802,58147.0,58146.0,0.48314396]
[1726222917840,0.05906975,58147.0,58146.0,0.48314396]
[1726222918525,0.14505375,58147.0,58146.0,0.48314396]
[1726222919228,0.35798476,58147.0,58146.0,0.210986]
[1726222919821,0.22037694,58147.0,58146.0,0.210986]
[1726222921730,0.19453991,58147.0,58146.0,0.210986]
[1726222921928,0.16130719,58147.0,58146.0,0.210986]
[1726222922130,0.16130719,58147.0,58146.0,0.296972]
[1726222922131,0.21291372,58147.0,58146.0,0.296972]
[1726222922337,0.07532319,58147.0,58146.0,0.382958]
[1726222922532,0.03321512,58147.0,58146.0,0.382958]
[1726222922923,0.12038341,58153.0,58151.0,0.085978]
[1726222923228,0.13759053,58156.0,58155.0,0.085972]
[1726222923434,0.04210326,58156.0,58155.0,0.085972]
[1726222923630,0.13759053,58156.0,58155.0,0.085972]
[1726222923825,0.07531459,58156.0,58155.0,0.085972]
[1726222924025,0.13759053,58156.0,58155.0,0.085972]
[1726222924231,0.21290512,58156.0,58155.0,0.085972]
[1726222924429,0.07531459,58156.0,58155.0,0.085972]
[1726222925033,0.07531459,58156.0,58155.0,0.171944]
[1726222925237,0.03321133,58156.0,58155.0,0.171944]
[1726222925532,0.03421133,58156.0,58155.0,0.20163018]
[1726222925740,0.001,58156.0,58155.0,0.20163018]
[1726222926939,0.002,58156.0,58155.0,0.20563018]
[1726222927134,0.004,58160.0,58159.0,0.085966]
[1726222927344,0.004,58165.0,58164.0,0.085959]
[1726222927633,0.47382724,58167.0,58166.0,0.085956]
[1726222927827,0.47294724,58167.0,58166.0,0.15446376]
[1726222928529,0.47294724,58167.0,58166.0,0.085956]
[1726222929234,0.47794724,58167.0,58166.0,0.085956]
[1726222930021,0.48294724,58167.0,58166.0,0.085956]
[1726222932230,0.456755,58167.0,58166.0,0.13729698]
[1726222933531,0.456755,58167.0,58166.0,0.085956]
[1726222934239,0.58482597,58167.0,58166.0,0.085956]
[1726222934436,0.6464832,58167.0,58166.0,0.085956]
[1726222935931,0.7664832,58167.0,58166.0,0.085956]
[1726222936536,0.6464832,58167.0,58166.0,0.085956]
[1726222936838,0.7664832,58167.0,58166.0,0.085956]
[1726222939632,0.7614832,58167.0,58166.0,0.085956]
[1726222939832,0.7564832,58167.0,58166.0,0.087956]
[1726222940339,0.8424392,58167.0,58166.0,0.087956]
[1726222940527,0.7564832,58167.0,58166.0,0.087956]
[1726222942235,0.566755,58167.0,58166.0,0.087956]
[1726222942638,0.65271,58167.0,58166.0,0.087956]
[1726222942844,0.566755,58167.0,58166.0,0.087956]
[1726222944436,0.65271,58167.0,58166.0,0.002]
[1726222944636,0.566755,58167.0,58166.0,0.002]
[1726222945344,0.65271,58167.0,58166.0,0.002]
[1726222945639,0.566755,58167.0,58166.0,0.002]
[1726222945842,0.65271,58167.0,58166.0,0.002]
[1726222950651,0.65271,58167.0,58166.0,0.087956]
[1726222951247,0.566755,58167.0,58166.0,0.087956]
[1726222951550,0.446755,58167.0,58166.0,0.087956]
[1726222952251,0.446755,58167.0,58166.0,0.207956]
[1726222957444,0.085955,58167.0,58166.0,0.207956]
[1726222961351,0.21401999,58167.0,58166.0,0.207956]
[1726222964361,0.085954,58168.0,58167.0,0.085955]
[1726222965649,0.086954,58168.0,58167.0,0.086955]
[1726222966262,0.086954,58168.0,58167.0,0.13846389]
[1726222966853,0.086954,58168.0,58167.0,0.16378777]
[1726222970861,0.086954,58168.0,58167.0,0.13846389]
[1726222972461,0.2766733,58168.0,58167.0,0.086955]
[1726222975066,0.21501896,58168.0,58167.0,0.086955]
[1726222975363,0.2766733,58168.0,58167.0,0.086955]
[1726222976261,0.27667333,58168.0,58167.0,0.086955]
[1726222977470,0.21501899,58168.0,58167.0,0.086955]
[1726222977671,0.27667333,58168.0,58167.0,0.086955]
[1726222979459,0.086954,58168.0,58167.0,0.086955]
[1726222979961,0.086954,58168.0,58167.0,0.15565369]
[1726222985974,0.086954,58168.0,58167.0,0.086955]
[1726222986376,0.086954,58168.0,58167.0,0.15565369]
[1726222986675,0.086954,58168.0,58167.0,0.086955]
[1726222987574,0.21501901,58168.0,58164.0,0.12]
[1726222987873,0.21501901,58168.0,58165.0,0.085958]
[1726222987874,0.085956,58166.0,58165.0,0.085958]
[1726222988066,0.21402101,58166.0,58165.0,0.085958]
[1726222989970,0.21402101,58166.0,58165.0,0.088958]
[1726222990475,0.21402101,58166.0,58165.0,0.089958]
[1726222994481,0.085956,58166.0,58165.0,0.089958]
[1726223009483,0.21402099,58166.0,58165.0,0.089958]
[1726223014286,0.12806499,58166.0,58165.0,0.089958]
[1726223014484,0.12806499,58166.0,58165.0,0.450758]
[1726223015492,0.085955,58167.0,58166.0,0.085956]
[1726223015687,0.16125008,58167.0,58166.0,0.205956]
[1726223015889,0.21400999,58167.0,58166.0,0.205956]
[1726223016489,0.085948,58172.0,58166.0,0.32919646]
[1726223016698,0.085952,58170.0,58169.0,0.205949]
[1726223019486,0.087952,58170.0,58169.0,0.205949]
[1726223019694,0.087952,58170.0,58169.0,0.23221546]
[1726223019905,0.091952,58170.0,58169.0,0.23221546]
[1726223020488,0.091952,58170.0,58169.0,0.30088864]
[1726223022800,0.091952,58170.0,58169.0,0.38684064]
[1726223023306,0.091952,58170.0,58169.0,0.30088864]
[1726223024597,0.16724693,58170.0,58169.0,0.23221546]
[1726223024801,0.22000673,58170.0,58169.0,0.23221546]
[1726223028601,0.22000677,58170.0,58169.0,0.23221546]
[1726223031506,0.091952,58170.0,58169.0,0.30088864]
[1726223034007,0.091952,58170.0,58169.0,0.23221546]
[1726223036512,0.091952,58170.0,58169.0,0.30088864]
[1726223038809,0.091952,58170.0,58169.0,0.15462218]
[1726223039008,0.091952,58170.0,58169.0,0.27462218]
[1726223039509,0.091952,58170.0,58169.0,0.32952977]
[1726223041117,0.006,58170.0,58169.0,0.32952977]
[1726223041713,0.08595,58170.0,58169.0,0.32952977]
[1726223042213,0.08595,58170.0,58169.0,0.32941092]
[1726223044322,0.08595,58170.0,58169.0,0.43245896]
[1726223044818,0.08595,58170.0,58169.0,0.47654552]
[1726223045521,0.08595,58170.0,58169.0,0.32941092]
[1726223046719,0.2233934,58170.0,58169.0,0.205949]
[1726223046922,0.2986883,58170.0,58169.0,0.205949]
[1726223047320,0.1612449,58170.0,58169.0,0.205949]
[1726223048812,0.11915265,58170.0,58169.0,0.205949]
[1726223050824,0.23949309,58170.0,58169.0,0.205949]
[1726223051216,0.11915265,58170.0,58169.0,0.205949]
[1726223052913,0.23949309,58170.0,58169.0,0.205949]
[1726223053321,0.16124574,58170.0,58169.0,0.205949]
[1726223054629,0.08595,58170.0,58169.0,0.47672902]
[1726223056624,0.3608,58175.0,58169.0,0.47672902]
[1726223056625,0.3608,58175.0,58169.0,0.39078002]
[1726223056815,0.3608,58175.0,58174.0,0.085944]
[1726223057020,0.3608,58175.0,58174.0,0.43255213]
[1726223057328,0.446743,58175.0,58174.0,0.43255213]
[1726223057528,0.446743,58175.0,58174.0,0.32947719]
[1726223058324,0.462743,58175.0,58174.0,0.33147719]
[1726223058524,0.462743,58175.0,58174.0,0.46041291]
[1726223058717,0.462743,58175.0,58174.0,0.35736247]
[1726223061430,0.462743,58175.0,58174.0,0.35743467]
[1726223061635,0.53803476,58175.0,58174.0,0.23382928]
[1726223061835,0.45209176,58175.0,58174.0,0.23382928]
[1726223062135,0.09129176,58175.0,58174.0,0.23382928]
[1726223063828,0.09129176,58175.0,58174.0,0.31977328]
[1726223064022,0.11084586,58175.0,58174.0,0.31977328]
[1726223064222,0.14404712,58175.0,58174.0,0.31977328]
[1726223064427,0.17065224,58175.0,58174.0,0.31977328]
[1726223064632,0.09129176,58175.0,58174.0,0.31977328]
[1726223065132,0.16947592,58175.0,58174.0,0.31977328]
[1726223065727,0.04920126,58175.0,58174.0,0.31977328]
[1726223066030,0.15461518,58180.0,58179.0,0.171874]
[1726223066224,0.09483495,58180.0,58179.0,1.168314]
[1726223066423,0.04208467,58180.0,58179.0,1.768314]
[1726223066631,0.13742495,58181.0,58180.0,0.17187]
[1726223067024,0.13742495,58181.0,58180.0,0.68751]
[1726223067220,0.17950717,58181.0,58180.0,0.68751]
[1726223067425,0.04208222,58181.0,58180.0,0.68751]
[1726223068231,0.04808222,58181.0,58180.0,0.68851]
[1726223068735,0.05508222,58181.0,58180.0,0.68951]
[1726223069733,0.013,58181.0,58180.0,0.68951]
[1726223070039,0.013,58181.0,58180.0,0.17387]
[1726223071529,0.013,58181.0,58180.0,0.26841584]
[1726223071835,0.013,58181.0,58180.0,0.19989842]
[1726223072133,0.013,58181.0,58180.0,0.28583342]
[1726223073437,0.013,58181.0,58180.0,0.3543385]
[1726223074030,0.013,58181.0,58180.0,0.28583342]
[1726223074433,0.013,58181.0,58180.0,0.35434211]
[1726223074838,0.013,58181.0,58180.0,0.86998211]
[1726223075028,0.013,58181.0,58180.0,0.91978211]
[1726223075229,0.004,58188.0,58180.0,1.19346842]
[1726223075445,0.49822495,58210.0,58193.0,0.257748]
[1726223075446,0.21136019,58194.0,58193.0,0.257748]
[1726223075639,0.004,58208.0,58193.0,0.446716]
[1726223075834,0.0463,58213.0,58207.0,0.12]
[1726223076133,0.0463,58213.0,58212.0,0.12]
[1726223076335,0.132187,58213.0,58212.0,0.12]
[1726223076741,0.26015973,58213.0,58211.0,0.085888]
[1726223076933,0.12797273,58212.0,58211.0,0.085888]
[1726223077642,0.12797273,58212.0,58209.0,0.085893]
[1726223077838,0.12797273,58211.0,58209.0,0.085893]
[1726223078045,0.12797273,58210.0,58209.0,0.085893]
[1726223078738,0.12797273,58210.0,58209.0,0.086893]
[1726223079042,0.13397273,58210.0,58209.0,0.087893]
[1726223079243,0.21986373,58210.0,58209.0,0.087893]
[1726223079736,0.21986373,58210.0,58209.0,0.207893]
[1726223079937,0.085898,58205.0,58204.0,0.004]
[1726223080131,0.085904,58201.0,58200.0,0.004]
[1726223080334,0.25673187,58201.0,58200.0,0.12]
[1726223080529,0.30945789,58201.0,58200.0,0.12]
[1726223080735,0.3847046,58201.0,58200.0,0.12]
[1726223081242,0.3847046,58201.0,58200.0,0.205906]
[1726223081243,0.2988006,58201.0,58200.0,0.205906]
[1726223081545,0.17082787,58201.0,58200.0,0.205906]
[1726223081743,0.17082787,58201.0,58200.0,0.207906]
[1726223081929,0.2988006,58201.0,58200.0,0.207906]
[1726223082239,0.12797273,58201.0,58200.0,0.208906]
[1726223082643,0.08590742,58201.0,58200.0,0.123]
[1726223082950,0.12797837,58202.0,58200.0,0.123]
[1726223083145,0.17517837,58201.0,58200.0,0.123]
[1726223084137,0.17517837,58201.0,58200.0,0.207906]
[1726223084737,0.17082787,58203.0,58202.0,0.085903]
[1726223085745,0.17182787,58203.0,58202.0,0.085903]
[1726223087041,0.17382787,58203.0,58202.0,0.085903]
[1726223087237,0.003,58203.0,58202.0,0.085903]
[1726223088050,0.0492,58203.0,58202.0,0.085903]
[1726223088952,0.003,58203.0,58202.0,0.171806]
[1726223089140,0.003,58203.0,58202.0,0.687246]
[1726223089342,0.003,58203.0,58202.0,0.601343]
[1726223089853,0.003,58203.0,58202.0,0.085903]
[1726223092840,0.003,58203.0,58202.0,0.171806]
[1726223093351,0.003,58203.0,58202.0,0.085903]
[1726223093553,0.003,58203.0,58202.0,0.171806]
[1726223093949,0.003,58203.0,58202.0,0.085903]
[1726223095156,0.003,58203.0,58202.0,0.171806]
[1726223095456,0.003,58203.0,58202.0,0.085903]
[1726223095655,0.003,58203.0,58202.0,0.171806]
[1726223096154,0.003,58203.0,58202.0,0.532606]
[1726223096543,0.003,58203.0,58202.0,0.58375052]
[1726223097148,0.003,58203.0,58202.0,0.532606]
[1726223097546,0.003,58203.0,58202.0,0.58375052]
[1726223097746,0.003,58203.0,58202.0,0.49784752]
[1726223097949,0.003,58203.0,58202.0,0.58375052]
[1726223099549,0.003,58203.0,58202.0,0.532606]
[1726223100056,0.0361809,58203.0,58202.0,0.532606]
[1726223100254,0.07824559,58203.0,58202.0,0.532606]
[1726223100445,0.21480292,58203.0,58202.0,0.532606]
[1726223101650,0.07824559,58203.0,58202.0,0.532606]
[1726223102457,0.05572522,58203.0,58202.0,0.532606]
[1726223102652,0.13097081,58203.0,58202.0,0.532606]
[1726223102852,0.1309708,58203.0,58202.0,0.532606]
[1726223104155,0.1309708,58203.0,58202.0,0.652606]
[1726223104459,0.13097398,58203.0,58198.0,0.085908]
[1726223104657,0.39367333,58199.0,58198.0,0.085908]
[1726223104852,0.21388098,58199.0,58198.0,0.085908]
[1726223105053,0.12797398,58199.0,58198.0,0.085908]
[1726223105263,0.0331809,58199.0,58198.0,0.171817]
[1726223105555,0.0331809,58199.0,58198.0,0.085908]
[1726223105556,0.2219882,58199.0,58198.0,0.085908]
[1726223105759,0.12797398,58199.0,58198.0,0.085908]
[1726223105959,0.21388098,58199.0,58198.0,0.085908]
[1726223106561,0.21488098,58199.0,58198.0,0.101908]
[1726223107056,0.086907,58199.0,58198.0,0.101908]
[1726223107948,0.08591,58197.0,58194.0,0.01299869]
[1726223108145,0.206907,58199.0,58193.0,0.085916]
[1726223108146,0.085918,58194.0,58193.0,0.085916]
[1726223109055,0.085918,58194.0,58193.0,0.15448689]
[1726223109356,0.085918,58194.0,58191.0,0.06857089]
[1726223109558,0.086918,58194.0,58193.0,0.014]
[1726223109752,0.085918,58192.0,58191.0,0.06857089]
[1726223109953,0.085919,58191.0,58190.0,0.08592]
[1726223110360,0.085919,58191.0,58190.0,0.13731909]
[1726223110957,0.085919,58191.0,58190.0,0.08592]
[1726223111159,0.135419,58191.0,58190.0,0.08592]
[1726223111363,0.135419,58191.0,58190.0,0.13731614]
[1726223111757,0.135419,58191.0,58190.0,0.25731614]
[1726223112265,0.001,58194.0,58193.0,0.085916]
[1726223112459,0.001,58194.0,58193.0,0.70399081]
[1726223112765,0.001,58194.0,58193.0,0.652632]
[1726223112971,0.001,58194.0,58193.0,0.77551352]
[1726223113157,0.091,58198.0,58197.0,0.08591]
[1726223113459,0.091,58198.0,58197.0,0.27436448]
[1726223114957,0.02485333,58201.0,58200.0,0.085906]
[1726223115263,0.02485333,58201.0,58200.0,0.32874803]
[1726223116357,0.446703,58202.0,58201.0,0.085904]
[1726223116557,0.446703,58202.0,58201.0,0.20874603]
[1726223117458,0.446703,58202.0,58201.0,0.085904]
[1726223118069,0.447703,58202.0,58201.0,0.085904]
[1726223118762,0.447703,58202.0,58201.0,0.089904]
[1726223118958,0.086903,58202.0,58201.0,0.089904]
[1726223122057,0.16215613,58202.0,58201.0,0.089904]
[1726223124963,0.07625313,58202.0,58201.0,0.089904]
[1726223125952,0.12102958,58202.0,58201.0,0.089904]
[1726223126156,0.03418423,58202.0,58201.0,0.175808]
[1726223126369,0.07625269,58202.0,58201.0,0.221108]
[1726223126573,0.07624808,58202.0,58201.0,0.221108]
[1726223127459,0.13817754,58202.0,58201.0,0.307012]
[1726223127769,0.15421178,58202.0,58201.0,0.307012]
[1726223128063,0.15421178,58202.0,58201.0,0.507012]
[1726223128270,0.15421178,58202.0,58201.0,1.022452]
[1726223129961,0.14117754,58207.0,58201.0,1.63319793]
[1726223129962,0.004,58207.0,58201.0,1.63319793]
[1726223130267,0.0046,58221.0,58217.0,0.085881]
[1726223130459,0.3608,58218.0,58217.0,0.285881]
[1726223132067,0.446679,58218.0,58217.0,0.285881]
[1726223132266,0.446679,58218.0,58217.0,0.286881]
[1726223132267,0.3708,58218.0,58217.0,0.286881]
[1726223132467,0.3848,58218.0,58217.0,0.286881]
[1726223132662,0.470679,58218.0,58217.0,0.086881]
[1726223132866,0.556558,58218.0,58217.0,0.001]
[1726223133172,1.757757,58218.0,58215.0,0.06845215]
[1726223133472,1.757757,58218.0,58212.0,0.06845215]
[1726223133473,0.085887,58213.0,58212.0,0.06845215]
[1726223133666,0.24291396,58213.0,58212.0,0.06845215]
[1726223133863,0.24291396,58213.0,58209.0,0.085892]
[1726223133864,0.08589,58211.0,58210.0,0.06845215]
[1726223134067,0.085891,58210.0,58209.0,0.085892]
[1726223134266,0.135791,58210.0,58209.0,0.085892]
[1726223135370,0.140791,58210.0,58209.0,0.085892]
[1726223135872,0.145791,58210.0,58209.0,0.085892]
[1726223138568,0.145791,58210.0,58209.0,0.285892]
[1726223139176,0.0599,58210.0,58209.0,0.285892]
[1726223139375,0.01,58210.0,58209.0,0.285892]
[1726223143071,0.04317955,58210.0,58209.0,0.285892]
[1726223143975,0.04317955,58210.0,58209.0,0.646692]
[1726223144175,0.04317955,58210.0,58209.0,0.285892]
[1726223144779,0.01,58210.0,58209.0,0.285892]
[1726223144969,0.01,58210.0,58209.0,0.337227]
[1726223145171,0.095891,58210.0,58209.0,0.646692]
[1726223145380,0.095891,58210.0,58209.0,0.33728602]
[1726223145878,0.095891,58210.0,58209.0,0.285892]
[1726223146285,0.095891,58210.0,58209.0,0.085892]
[1726223147381,0.095891,58210.0,58209.0,0.13728602]
[1726223147571,0.095891,58210.0,58209.0,0.085892]
[1726223148486,0.095891,58210.0,58209.0,0.13728602]
[1726223148681,0.095891,58210.0,58209.0,0.085892]
[1726223149473,0.095891,58210.0,58209.0,0.13728602]
[1726223152088,0.095891,58210.0,58209.0,0.085892]
[1726223152287,0.095891,58210.0,58209.0,0.13728602]
[1726223152288,0.12168618,58210.0,58209.0,0.13728602]
[1726223152889,0.12168618,58210.0,58209.0,0.085892]
[1726223152890,0.2496526,58210.0,58209.0,0.085892]
[1726223154192,0.2496526,58210.0,58209.0,0.205892]
[1726223158092,0.2496526,58210.0,58209.0,0.085892]
[1726223158287,0.2496526,58210.0,58209.0,0.205892]
[1726223158489,0.36871325,58210.0,58209.0,0.205892]
[1726223158796,0.19692918,58210.0,58209.0,0.205892]
[1726223159288,0.33436245,58210.0,58209.0,0.205892]
[1726223159894,0.12168618,58210.0,58209.0,0.32795486]
[1726223161395,0.095891,58210.0,58209.0,0.47348761]
[1726223162993,0.01,58210.0,58209.0,0.41384786]
[1726223163300,0.01,58210.0,58209.0,0.55942535]
[1726223163501,0.085886,58214.0,58213.0,0.085885]
[1726223163695,0.085886,58214.0,58213.0,0.32794786]
[1726223165293,0.085886,58214.0,58213.0,0.31089048]
[1726223165503,0.220886,58214.0,58213.0,0.20894786]
[1726223165695,0.266086,58214.0,58213.0,0.20894786]
[1726223166096,0.146086,58214.0,58213.0,0.20894786]
[1726223167793,0.33565815,58214.0,58213.0,0.086885]
[1726223174701,0.27405163,58214.0,58213.0,0.086885]
[1726223174910,0.231972,58214.0,58213.0,0.12305913]
[1726223176207,0.231972,58214.0,58213.0,0.20894613]
[1726223177509,0.146086,58214.0,58213.0,0.20894613]
[1726223178105,0.146085,58214.0,58213.0,0.20894613]
[1726223178298,0.23197,58214.0,58213.0,0.20894613]
[1726223178499,0.23197,58214.0,58213.0,0.12305913]
[1726223178698,0.146085,58214.0,58213.0,0.12305913]
[1726223179003,0.23197,58214.0,58213.0,0.12305913]
[1726223179507,0.146085,58214.0,58213.0,0.20894613]
[1726223180308,0.146085,58214.0,58213.0,0.32894613]
[1726223180512,0.100885,58214.0,58213.0,0.32894613]
[1726223182907,0.100885,58214.0,58213.0,0.206887]
[1726223183605,0.015,58214.0,58213.0,0.27553155]
[1726223183802,0.015,58214.0,58213.0,0.206887]
[1726223184404,0.100885,58214.0,58213.0,0.206887]
[1726223184910,0.100885,58214.0,58213.0,0.2755327]
[1726223187108,0.30677,58214.0,58213.0,0.0696457]
[1726223187308,0.220885,58214.0,58213.0,0.001]
[1726223188313,0.30677,58214.0,58213.0,0.001]
[1726223189215,0.220885,58214.0,58213.0,0.001]
[1726223189416,0.30677,58214.0,58213.0,0.001]
[1726223190018,0.49634118,58214.0,58213.0,0.001]
[1726223190913,0.41045618,58214.0,58213.0,0.001]
[1726223191306,0.29045618,58214.0,58213.0,0.001]
[1726223191507,0.37634118,58214.0,58213.0,0.001]
[1726223192008,0.29045618,58214.0,58213.0,0.001]
[1726223192206,0.37634118,58214.0,58213.0,0.001]
[1726223195011,0.5653738,58214.0,58213.0,0.001]
[1726223196208,0.5037676,58214.0,58213.0,0.001]
[1726223196417,0.31473498,58214.0,58213.0,0.001]
[1726223197912,0.18677,58214.0,58213.0,0.12307854]
[1726223198212,0.18677,58214.0,58213.0,0.12307585]
[1726223200818,0.100885,58214.0,58213.0,0.12307585]
[1726223201507,0.18677,58214.0,58213.0,0.12307585]
[1726223201914,0.100885,58214.0,58213.0,0.12307585]
[1726223202320,0.18677,58214.0,58213.0,0.12307585]
[1726223203618,0.100885,58214.0,58213.0,0.12307585]
[1726223204724,0.18677,58214.0,58213.0,0.12307585]
[1726223205222,0.41788839,58214.0,58213.0,0.001]
[1726223205414,0.47949738,58214.0,58213.0,0.001]
[1726223205614,0.50377339,58214.0,58213.0,0.001]
[1726223205818,0.86457339,58214.0,58213.0,0.001]
[1726223206018,0.84029738,58214.0,58213.0,0.001]
[1726223206314,0.65126476,58214.0,58213.0,0.001]
[1726223206511,0.65126476,58214.0,58213.0,0.206887]
[1726223209734,0.56537976,58214.0,58213.0,0.206887]
[1726223211532,0.56537976,58214.0,58213.0,0.31798879]
[1726223212023,0.69278236,58214.0,58213.0,0.23210179]
[1726223212222,0.75439135,58214.0,58213.0,0.23210179]
[1726223212620,0.75437453,58214.0,58213.0,0.23210179]
[1726223213020,0.56480506,58214.0,58213.0,0.35441401]
[1726223213223,0.5218333,58214.0,58213.0,0.35441401]
[1726223216534,0.18900506,58214.0,58213.0,0.35441401]
[1726223217335,0.18900506,58214.0,58213.0,0.4999643]
[1726223217537,0.18900506,58214.0,58213.0,0.67152224]
[1726223218058,0.18900506,58214.0,58213.0,0.79130876]
[1726223218429,0.18900506,58214.0,58213.0,1.78688224]
[1726223218830,0.18900506,58214.0,58213.0,1.23618224]
[1726223219130,0.18900506,58214.0,58213.0,1.83618224]
[1726223220037,0.45324015,58214.0,58213.0,1.56853579]
[1726223220235,0.50595448,58214.0,58213.0,1.56853579]
[1726223220431,0.31694942,58214.0,58213.0,1.56853579]
[1726223221235,0.12794436,58214.0,58213.0,1.56853579]
[1726223221434,0.12794436,58214.0,58213.0,0.96853579]
[1726223222334,0.07523003,58214.0,58213.0,0.96853579]
[1726223222533,0.18769185,58215.0,58214.0,0.17177]
[1726223222740,0.18769185,58215.0,58214.0,0.53257]
[1726223223239,0.12794436,58215.0,58214.0,0.53257]
[1726223223943,0.12794436,58215.0,58214.0,0.53357]
[1726223224440,0.31694942,58215.0,58214.0,0.619455]
[1726223225437,0.18900506,58216.0,58215.0,0.085884]
[1726223225636,0.22217949,58216.0,58215.0,0.291768]
[1726223226035,0.31695092,58216.0,58215.0,0.291768]